bitfinex-derivatives/quotes_ETHF0:USTF0_20241129
["timestamp","ask_amount","ask_price","bid_price","bid_amount"]
[1732892968344,2.62039948,3632.2,3631.6,3.2078]
[1732892968739,0.27514,3631.7,3631.6,3.2078]
[1732892968944,2.62039948,3632.2,3631.6,3.2078]
[1732892969248,0.27512,3632.0,3631.7,3.2078]
[1732892970146,0.27511,3632.1,3631.8,0.27513]
[1732892970340,0.82194585,3632.8,3631.8,0.27513]
[1732892970341,0.27507,3632.7,3631.8,0.27513]
[1732892970546,1.1,3632.9,3631.4,1.8817]
[1732892970547,1.1,3632.9,3632.4,3.2078]
[1732892970742,0.27508,3632.5,3632.4,3.2078]
[1732892971343,2.62039948,3632.6,3632.3,3.2078]
[1732892971538,2.62039948,3633.0,3632.3,3.2078]
[1732892971841,2.62039948,3633.0,3632.9,3.2078]
[1732892972043,2.62039948,3633.4,3632.9,3.2078]
[1732892972239,2.62039948,3633.4,3633.3,3.2078]
[1732892973046,2.89540948,3633.4,3633.3,3.2078]
[1732892973243,2.62039948,3633.4,3633.3,3.2078]
[1732892975248,2.62039948,3633.4,3632.9,3.2078]
[1732892975447,0.27502,3633.3,3632.9,3.2078]
[1732892975643,2.62039948,3633.0,3632.9,3.2078]
[1732892976747,2.89543948,3633.0,3632.9,3.2078]
[1732892977041,3.12021852,3633.0,3632.9,3.2078]
[1732892977241,2.62039948,3633.0,3632.4,3.2078]
[1732892977448,2.62039948,3632.5,3632.4,3.2078]
[1732892977846,5.69059948,3632.9,3632.4,3.2078]
[1732892978045,5.96564948,3632.9,3632.4,3.2078]
[1732892978439,5.69059948,3632.9,3632.4,3.2078]
[1732892978645,5.69059948,3632.9,3632.4,3.48289]
[1732892978846,5.69059948,3632.9,3632.8,3.2078]
[1732892980847,5.82769188,3632.9,3632.8,3.2078]
[1732892982949,6.10274188,3632.9,3632.8,3.2078]
[1732892983150,5.82769188,3632.9,3632.8,3.2078]
[1732892984043,5.69059948,3632.9,3632.8,3.2078]
[1732892984250,0.2752084,3633.6,3632.8,3.2078]
[1732892984550,0.2752084,3633.6,3632.7,0.68767]
[1732892984551,0.2752084,3633.6,3633.5,3.2078]
[1732892984953,0.5502084,3633.6,3633.5,3.2078]
[1732892985353,0.2752084,3633.6,3633.5,3.2078]
[1732892986650,0.8971,3633.9,3633.6,0.27499]
[1732892987049,0.8971,3633.9,3633.5,3.2078]
[1732892987245,0.2300149,3634.3,3633.5,4.4578]
[1732892987246,0.27495,3634.3,3633.5,4.4578]
[1732892987553,0.22746123,3634.7,3634.2,3.2078]
[1732892987751,0.22746123,3634.7,3634.3,0.27494]
[1732892987752,0.27492,3634.7,3634.3,0.27494]
[1732892987949,1.25722,3634.7,3634.3,0.27494]
[1732892988153,1.25722,3634.7,3634.3,0.9338]
[1732892988154,0.9823,3634.7,3634.3,0.9338]
[1732892988353,0.9823,3634.7,3634.3,1.20874]
[1732892988354,1.25722,3634.7,3634.3,1.20874]
[1732892988554,0.27493,3634.5,3634.3,0.9338]
[1732892988750,1.53241249,3634.7,3634.4,0.27494]
[1732892988946,1.25749249,3634.7,3634.6,3.2078]
[1732892989551,1.53240249,3634.7,3634.6,3.2078]
[1732892990059,1.25721,3634.7,3634.6,3.2078]
[1732892992557,0.9823,3634.7,3634.6,3.2078]
[1732892992854,1.25721,3634.7,3634.6,3.2078]
[1732892993060,0.9823,3634.7,3634.6,3.2078]
[1732892993262,1.25721,3634.7,3634.6,3.2078]
[1732892997356,0.27491,3634.7,3634.6,3.2078]
[1732892998250,2.48943639,3634.7,3634.6,3.2078]
[1732892998451,2.21452639,3634.7,3634.6,3.2078]
[1732892998650,2.21452639,3634.7,3634.3,0.9338]
[1732892998859,0.27519249,3635.5,3634.6,3.2078]
[1732892999159,0.27487,3635.4,3635.1,3.2078]
[1732892999356,0.27519249,3635.5,3635.2,0.9512]
[1732892999552,2.48937639,3635.6,3635.2,1.22607]
[1732892999856,0.27487,3635.4,3635.2,0.9512]
[1732893000162,0.27486,3635.4,3635.2,0.9512]
[1732893000353,0.27487,3635.3,3635.2,0.9512]
[1732893000662,2.89055476,3635.6,3635.2,0.9512]
[1732893001256,0.27486,3635.5,3635.2,0.9512]
[1732893001459,3.16540476,3635.6,3635.2,0.9512]
[1732893001655,2.61551667,3635.6,3635.2,0.9512]
[1732893001859,1.24993,3635.9,3635.4,0.27486]
[1732893002060,1.24993,3635.9,3635.2,0.9512]
[1732893002061,0.9751,3635.9,3635.2,0.9512]
[1732893002259,0.27483,3635.8,3635.2,1.22607]
[1732893002560,0.27484,3635.7,3635.2,0.9512]
[1732893002756,0.27483,3635.8,3635.3,0.27487]
[1732893002956,0.9751,3635.9,3635.2,0.9512]
[1732893003364,0.9751,3635.9,3635.2,1.22607]
[1732893003567,0.27484,3635.7,3635.2,2.41608]
[1732893003760,0.27484,3635.8,3635.3,0.27486]
[1732893003963,0.27484,3635.8,3635.3,0.35]
[1732893004171,0.27484,3635.7,3635.3,0.62487]
[1732893004464,1.2501222,3635.9,3635.3,0.35]
[1732893004465,0.27485,3635.6,3635.3,0.35]
[1732893004859,0.27485,3635.5,3635.2,1.22608]
[1732893005162,0.27486,3635.5,3635.2,0.9512]
[1732893005361,2.61551667,3635.6,3635.2,0.9512]
[1732893005559,0.27487,3635.4,3635.2,0.9512]
[1732893005759,2.61551667,3635.6,3635.2,0.9512]
[1732893005760,0.27487,3635.3,3635.2,0.9512]
[1732893006166,0.27486,3635.4,3635.2,0.9512]
[1732893006666,2.61551667,3635.6,3635.2,0.9512]
[1732893007165,0.27487,3635.4,3635.2,1.22608]
[1732893007660,0.27486,3635.4,3635.2,1.22608]
[1732893007858,0.27486,3635.4,3635.2,0.9512]
[1732893008055,0.27487,3635.3,3635.2,0.9512]
[1732893008255,0.27488,3635.2,3635.1,3.2078]
[1732893008465,2.89039667,3635.2,3635.1,3.2078]
[1732893009367,3.84889667,3635.2,3635.1,3.2078]
[1732893010756,1.23338,3635.2,3635.1,3.2078]
[1732893012665,1.17818,3635.3,3635.1,3.2078]
[1732893012860,0.27488,3635.2,3635.1,4.1437]
[1732893013267,0.27488,3635.2,3635.1,3.2078]
[1732893019069,0.27488,3635.2,3635.1,1.59619665]
[1732893019266,0.27493,3634.5,3634.4,3.2078]
[1732893019468,0.27498,3633.9,3633.8,0.9093]
[1732893020171,0.27501,3633.5,3633.4,0.9803]
[1732893020371,0.27498,3633.9,3633.6,0.27499]
[1732893020567,2.07597611,3634.4,3633.6,3.2078]
[1732893020770,0.27493,3634.6,3634.0,3.2078]
[1732893020963,3.2078,3634.8,3634.1,1.8053]
[1732893021169,0.27494,3634.3,3634.2,0.9649]
[1732893021368,3.2078,3634.8,3634.2,0.9649]
[1732893021873,1.098,3635.2,3634.2,0.9649]
[1732893022075,1.098,3635.2,3634.4,3.2078]
[1732893022572,0.27493,3634.6,3634.4,3.48273]
[1732893022777,0.27493,3634.5,3634.4,3.2078]
[1732893023171,0.27492,3634.7,3634.4,3.2078]
[1732893023374,0.27492,3634.7,3634.6,0.27492]
[1732893023569,2.21438087,3634.8,3634.5,0.27493]
[1732893023570,0.27493,3634.6,3634.5,0.27493]
[1732893023770,2.21438087,3634.8,3634.2,0.9649]
[1732893023970,0.27494,3634.3,3634.2,0.9649]
[1732893024168,2.21438087,3634.4,3634.1,0.896]
[1732893024169,0.27495,3634.2,3634.1,0.896]
[1732893024377,3.2078,3634.2,3633.7,0.9768]
[1732893024578,0.27498,3633.8,3633.7,0.9768]
[1732893025370,0.27501,3633.5,3633.4,1.8028]
[1732893025575,2.48939087,3633.5,3633.4,1.8028]
[1732893026477,2.48939087,3633.5,3633.4,2.07781]
[1732893026678,2.48939087,3633.5,3633.4,1.8028]
[1732893027274,0.27501,3633.5,3633.4,2.07781]
[1732893028175,3.09638087,3633.9,3633.4,1.8028]
[1732893028370,0.27501,3633.5,3633.4,2.07781]
[1732893029878,0.27501,3633.5,3633.4,1.8028]
[1732893030078,0.27501,3633.5,3633.4,2.07781]
[1732893030680,0.275,3633.6,3633.5,0.275]
[1732893030880,3.2078,3634.2,3634.1,0.27496]
[1732893031077,0.27497,3634.0,3633.9,0.27497]
[1732893032283,3.17588087,3634.5,3634.0,0.27496]
[1732893032284,0.27496,3634.1,3634.0,0.27496]
[1732893032486,0.27498,3634.0,3633.9,0.27497]
[1732893033082,0.27498,3633.9,3633.7,0.27499]
[1732893033277,0.27498,3633.9,3633.8,0.27497]
[1732893033685,2.21438087,3634.1,3633.6,4.0822]
[1732893033890,0.27498,3633.9,3633.8,0.27498]
[1732893034087,4.08008087,3634.5,3633.6,0.8744]
[1732893034288,0.27494,3634.4,3634.3,0.27494]
[1732893034582,2.21438087,3634.5,3634.4,0.27494]
[1732893034984,1.099,3635.0,3634.3,0.68737]
[1732893034985,2.21438087,3634.9,3634.3,0.68737]
[1732893035182,0.27492,3634.7,3634.6,0.27492]
[1732893035387,0.27492,3634.8,3634.7,0.27491]
[1732893035591,2.48929087,3634.9,3634.8,0.27491]
[1732893035789,2.21438087,3634.9,3634.8,0.27491]
[1732893036492,0.27492,3634.7,3634.6,0.27492]
[1732893036688,3.2078,3634.7,3634.2,1.8767]
[1732893036987,3.48274,3634.3,3634.2,2.15165]
[1732893037193,3.48274,3634.3,3634.2,1.8767]
[1732893037693,3.2078,3634.3,3634.2,1.21385]
[1732893038387,3.2078,3634.3,3634.2,0.9389]
[1732893038788,3.48274,3634.3,3634.2,0.9389]
[1732893038993,3.48274,3634.3,3633.8,0.27498]
[1732893039192,0.9371,3634.4,3632.8,1.6504124]
[1732893039193,5.42218087,3633.9,3633.0,3.89541]
[1732893039393,3.2078,3633.5,3633.4,0.27501]
[1732893039793,2.21438087,3633.9,3633.2,0.68758]
[1732893039993,2.21438087,3633.9,3633.8,0.27498]
[1732893040190,2.61769078,3633.9,3633.6,0.27499]
[1732893040393,2.61769078,3633.9,3633.2,0.68758]
[1732893040693,3.2078,3634.0,3633.1,1.8421]
[1732893040694,3.2078,3633.4,3633.1,0.9508]
[1732893040894,0.27502,3633.3,3632.7,1.16636]
[1732893041089,0.27502,3633.3,3632.9,0.27505]
[1732893041090,3.2078,3633.0,3632.9,0.27505]
[1732893041285,3.2078,3633.0,3632.7,0.8913]
[1732893041484,3.2078,3633.0,3632.9,0.27505]
[1732893041891,4.45193304,3633.0,3631.8,3.2078]
[1732893042088,5.82549078,3632.2,3632.0,0.27511]
[1732893042393,5.82549078,3632.2,3632.1,0.27511]
[1732893042790,5.82549078,3632.2,3632.0,0.27511]
[1732893042994,5.82549078,3632.2,3632.1,0.27511]
[1732893043497,5.82549078,3632.2,3632.0,0.27511]
[1732893043801,5.82549078,3632.2,3632.1,0.27511]
[1732893047401,3.2078,3632.2,3632.1,0.27511]
[1732893049295,3.2078,3632.2,3631.6,0.27515]
[1732893049296,0.27512,3632.0,3631.6,0.27515]
[1732893049497,5.82549078,3632.2,3632.1,0.27511]
[1732893049693,3.2078,3632.2,3632.1,0.27511]
[1732893049897,3.2078,3632.7,3632.6,0.27507]
[1732893051400,3.2078,3633.2,3632.4,3.89553]
[1732893051696,3.48283,3633.2,3632.9,0.27505]
[1732893051899,3.48283,3633.2,3632.3,1.8514]
[1732893052102,0.9252,3633.1,3633.0,0.27504]
[1732893053102,0.9252,3633.1,3632.4,0.68773]
[1732893053103,0.9252,3633.1,3632.9,0.27505]
[1732893053299,2.61769078,3633.0,3632.9,0.27505]
[1732893055402,3.2078,3633.2,3632.6,0.68769]
[1732893055595,3.2078,3633.2,3633.1,0.27504]
[1732893057302,3.2078,3633.2,3632.4,0.68773]
[1732893057503,2.61769078,3633.0,3632.8,0.27505]
[1732893057703,2.61769078,3633.0,3632.5,0.27508]
[1732893057907,2.61769078,3633.0,3632.9,0.27505]
[1732893058602,2.61769078,3633.0,3632.4,0.68773]
[1732893058800,0.27505,3632.9,3632.7,0.27506]
[1732893059002,2.61769078,3633.0,3632.7,0.27506]
[1732893059003,0.9136,3632.8,3632.7,0.27506]
[1732893059305,0.27507,3632.7,3632.5,0.27508]
[1732893059508,2.61769078,3632.6,3632.5,0.27508]
[1732893059707,2.61769078,3632.6,3632.2,0.9697]
[1732893059708,2.61769078,3632.6,3632.4,0.27508]
[1732893059904,2.61769078,3632.6,3631.9,1.66361]
[1732893060206,3.2078,3632.3,3632.2,0.2751]
[1732893060406,5.82549078,3632.3,3632.1,0.27511]
[1732893060605,0.9024,3632.2,3632.1,0.27511]
[1732893061200,3.2078,3632.3,3632.2,0.2751]
[1732893061505,4.1214,3632.8,3632.7,0.27507]
[1732893062105,3.2078,3632.8,3632.7,41.07507]
[1732893062305,2.61769078,3633.5,3633.4,0.27501]
[1732893062902,3.2078,3633.7,3633.4,0.1]
[1732893063101,3.50109078,3634.3,3634.2,0.27495]
[1732893063307,3.2078,3634.3,3634.2,0.27495]
[1732893064112,5.82549078,3634.7,3634.6,0.27492]
[1732893065408,0.68733,3634.5,3633.3,0.27502]
[1732893065712,3.2078,3633.5,3633.3,0.27502]
[1732893065908,3.2078,3633.5,3633.4,0.27501]
[1732893066309,3.2078,3633.5,3633.3,0.27502]
[1732893066510,3.2078,3633.5,3632.9,0.915]
[1732893066711,6.10053078,3633.1,3632.8,0.27506]
[1732893066912,5.82549078,3633.1,3632.8,0.27506]
[1732893067108,5.82549078,3633.1,3633.0,0.27504]
[1732893067308,5.82549078,3633.1,3632.7,0.98]
[1732893067508,5.82549078,3633.1,3632.9,0.27505]
[1732893067911,5.82549078,3633.1,3633.0,0.27504]
[1732893068211,5.82549078,3633.1,3632.7,0.98]
[1732893068411,3.2078,3633.1,3633.0,0.27504]
[1732893070912,5.82549078,3633.1,3633.0,0.27504]
[1732893071318,5.82549078,3633.1,3633.0,0.27504]
[1732893071717,5.82549078,3633.1,3632.8,0.9715]
[1732893071918,5.82549078,3633.1,3632.7,0.98]
[1732893071919,5.82549078,3633.1,3633.0,0.27504]
[1732893072211,3.2078,3633.1,3633.0,0.27504]
[1732893074119,2.61769078,3633.5,3633.4,0.27501]
[1732893074319,2.61769078,3633.5,3632.9,0.68763]
[1732893074320,4.1136,3633.6,3633.5,0.27501]
[1732893075017,2.61769078,3633.9,3633.5,0.27501]
[1732893075018,4.0917,3634.0,3633.9,0.27498]
[1732893075320,3.2078,3634.0,3633.9,0.27498]
[1732893075516,3.2078,3634.0,3633.9,0.89498]
[1732893075914,3.2078,3634.0,3633.9,0.27498]
[1732893076419,0.27499,3633.8,3633.2,4.1745]
[1732893076615,3.2078,3633.6,3633.2,7.9267]
[1732893076816,3.2078,3633.6,3633.5,0.27501]
[1732893077118,3.2078,3633.6,3633.5,0.86501]
[1732893077513,3.2078,3634.0,3633.5,0.86501]
[1732893077816,3.2078,3634.0,3633.9,0.27498]
[1732893078320,1.9253,3634.4,3634.3,0.27494]
[1732893078321,0.9719,3634.4,3634.3,0.27494]
[1732893079022,1.24684,3634.4,3634.3,0.27494]
[1732893079220,0.9719,3634.4,3634.3,0.27494]
[1732893081022,1.24684,3634.4,3634.2,0.27495]
[1732893081220,5.82549078,3634.3,3633.6,2.858]
[1732893081522,3.2078,3633.9,3633.8,0.27498]
[1732893083720,3.48278,3633.9,3633.7,0.27499]
[1732893083921,0.27499,3633.8,3633.3,0.9129]
[1732893084118,0.9322,3633.7,3633.6,0.275]
[1732893085325,3.2078,3633.9,3633.8,0.27498]
[1732893086221,3.2078,3634.3,3633.8,0.68746]
[1732893086421,3.48274,3634.3,3634.2,0.27495]
[1732893086626,3.2078,3634.3,3634.2,0.27495]
[1732893086826,3.48274,3634.3,3634.2,0.27495]
[1732893087428,3.2078,3634.3,3634.2,0.27495]
[1732893087624,3.48274,3634.3,3634.2,0.27495]
[1732893088425,3.48275,3634.3,3634.1,0.27495]
[1732893088624,3.2078,3634.3,3634.2,0.27495]
[1732893089925,3.2078,3634.3,3633.9,1.796]
[1732893090225,3.2078,3634.3,3634.2,0.27495]
[1732893090430,0.27495,3634.3,3634.2,0.27495]
[1732893090632,3.48275,3634.3,3634.2,0.27495]
[1732893090827,3.2078,3634.3,3633.9,1.796]
[1732893091333,0.27495,3634.2,3634.1,0.27496]
[1732893091528,3.2078,3634.3,3633.9,1.796]
[1732893091729,3.2078,3634.3,3633.4,3.2078]
[1732893092025,3.2078,3633.9,3633.8,0.27498]
[1732893092227,2.21482157,3634.0,3633.4,0.68754]
[1732893092428,3.2078,3634.3,3634.2,0.27495]
[1732893096431,0.50521403,3634.9,3634.2,0.27495]
[1732893096432,3.2078,3635.4,3634.2,0.87]
[1732893096738,0.27488,3635.2,3635.1,0.27488]
[1732893096938,1.17077,3635.3,3635.2,0.27488]
[1732893097436,0.9511,3635.5,3634.8,0.68727]
[1732893097636,0.9511,3635.5,3634.9,3.2078]
[1732893097637,0.27487,3635.3,3634.9,3.2078]
[1732893097837,0.27486,3635.4,3635.3,0.27487]
[1732893098431,0.27487,3635.3,3635.2,0.27487]
[1732893098633,0.9511,3635.5,3634.9,3.2078]
[1732893098831,0.27489,3635.1,3634.9,3.48269]
[1732893099134,0.952,3635.0,3634.9,3.4827]
[1732893099634,2.21482157,3635.2,3635.1,0.27488]
[1732893100131,5.42262157,3635.2,3634.5,0.68733]
[1732893100334,0.27489,3635.1,3635.0,0.27488]
[1732893100531,0.2749,3635.0,3634.9,0.2749]
[1732893100830,0.8974,3635.1,3635.0,0.27489]
[1732893100831,1.17229,3635.1,3635.0,0.27489]
[1732893101037,0.27489,3635.0,3634.9,0.27489]
[1732893101340,0.8974,3635.1,3635.0,0.27489]
[1732893103028,5.42262157,3635.2,3634.6,0.6873]
[1732893103233,5.42262157,3635.2,3635.1,0.27488]
[1732893103834,5.69750157,3635.2,3635.1,0.27488]
[1732893104033,5.42262157,3635.2,3634.9,0.9254]
[1732893104242,0.27489,3635.0,3634.9,1.2003]
[1732893104837,0.27489,3635.0,3634.9,0.2749]
[1732893105036,5.42262157,3635.2,3634.4,4.82055]
[1732893105333,5.42262157,3635.2,3634.4,7.8932]
[1732893105535,0.27491,3634.9,3634.8,0.27491]
[1732893105738,0.27492,3634.6,3634.5,0.27492]
[1732893105943,2.21482157,3634.7,3634.6,0.27492]
[1732893106128,2.21482157,3634.7,3634.4,4.1332]
[1732893106333,0.27493,3634.6,3634.5,0.27493]
[1732893106532,2.21482157,3634.7,3634.4,4.1332]
[1732893106738,2.48974157,3634.7,3634.6,0.27492]
[1732893107439,2.21482157,3634.7,3634.6,0.27492]
[1732893107742,2.48973157,3634.7,3634.6,0.27492]
[1732893108732,0.27493,3634.6,3634.5,0.27493]
[1732893111835,0.27498,3633.9,3633.8,3.2078]
[1732893112037,0.27498,3633.9,3633.5,0.275]
[1732893112038,0.27501,3633.6,3633.5,0.275]
[1732893112239,1.7768,3633.8,3633.3,1.8625]
[1732893112438,2.21482157,3633.6,3632.6,3.2078]
[1732893112640,2.21482157,3633.6,3632.7,3.47196]
[1732893112839,2.21482157,3633.6,3632.7,7.31196]
[1732893113347,0.27501,3633.5,3633.4,0.27501]
[1732893113534,0.27501,3633.5,3632.7,6.6243]
[1732893113535,1.112,3633.7,3633.5,0.275]
[1732893113844,0.275,3633.6,3633.5,0.275]
[1732893114037,0.275,3633.6,3632.8,0.68765]
[1732893114038,1.112,3633.7,3632.8,0.68765]
[1732893114245,0.275,3633.6,3633.2,0.27503]
[1732893114545,1.112,3633.7,3632.8,0.68765]
[1732893114742,0.27504,3633.1,3633.0,0.27504]
[1732893115143,2.21482157,3633.1,3633.0,0.27504]
[1732893116245,2.48986157,3633.1,3633.0,0.27504]
[1732893116544,2.21482157,3633.1,3633.0,0.27504]
[1732893117438,5.42262157,3633.5,3632.8,0.68765]
[1732893117638,5.42262157,3633.5,3633.4,0.27501]
[1732893117839,5.69763157,3633.5,3633.4,0.27501]
[1732893118038,5.42262157,3633.5,3632.7,2.7843]
[1732893118244,0.27503,3633.4,3633.3,0.27501]
[1732893118742,2.21482157,3633.5,3633.4,0.27501]
[1732893119740,3.2078,3633.8,3633.7,0.27499]
[1732893120238,0.8655,3634.2,3633.8,0.27498]
[1732893120436,0.27494,3634.5,3634.4,0.27493]
[1732893121043,0.27495,3634.4,3634.3,0.27494]
[1732893121246,2.21482157,3634.4,3634.3,0.27494]
[1732893121638,2.21482157,3634.8,3634.3,3.2078]
[1732893121950,2.21482157,3634.8,3634.7,0.27491]
[1732893122640,2.21482157,3634.8,3634.4,0.68735]
[1732893122641,5.69750157,3635.2,3635.1,0.27488]
[1732893122849,5.42262157,3635.2,3634.3,3.89516]
[1732893123049,5.69750157,3635.2,3635.1,0.27488]
[1732893123251,0.27489,3635.1,3635.0,0.27488]
[1732893123446,0.27488,3635.1,3635.0,0.27489]
[1732893123647,0.2749,3635.0,3634.9,0.27489]
[1732893123854,5.42262157,3635.2,3634.7,0.8705]
[1732893124045,0.27489,3635.1,3635.0,0.27488]
[1732893124248,5.42262157,3635.2,3634.7,0.8705]
[1732893124448,5.42262157,3635.2,3634.7,1.8129]
[1732893124654,0.2749,3635.0,3634.9,0.27489]
[1732893124955,3.2078,3635.2,3634.6,0.8834]
[1732893124956,0.68722,3635.1,3634.6,0.8834]
[1732893125154,0.27491,3634.8,3634.7,0.27491]
[1732893125358,0.27492,3634.7,3634.6,0.27492]
[1732893125656,0.27491,3634.8,3634.7,0.27491]
[1732893125858,2.21482157,3634.8,3634.7,0.27491]
[1732893126152,2.48973157,3634.8,3634.6,0.27492]
[1732893126351,2.48973157,3634.8,3634.7,0.27491]
[1732893126352,2.21482157,3634.8,3634.7,0.27491]
[1732893126547,2.21482157,3634.8,3634.3,3.2078]
[1732893126746,0.27492,3634.7,3634.6,0.27492]
[1732893126944,2.48973157,3634.8,3634.7,0.27491]
[1732893127247,2.21482157,3634.8,3634.7,0.27491]
[1732893127751,2.48973157,3634.8,3634.7,0.27491]
[1732893127951,2.21482157,3634.8,3634.7,0.27491]
[1732893128153,2.21482157,3634.8,3634.3,3.2078]
[1732893128354,2.48973157,3634.8,3634.3,5.1378]
[1732893128551,2.48976157,3634.4,3634.3,3.74274]
[1732893128759,2.48976157,3634.4,3634.3,3.2078]
[1732893128952,2.21482157,3634.4,3634.3,3.48274]
[1732893129353,2.48976157,3634.4,3634.3,3.2078]
[1732893129559,2.21482157,3634.4,3634.3,3.48274]
[1732893130155,2.21482157,3634.8,3634.3,3.2078]
[1732893130351,0.27492,3634.7,3634.6,0.27492]
[1732893130760,2.21482157,3634.8,3634.7,0.27491]
[1732893130957,2.21482157,3634.8,3634.3,3.2078]
[1732893131153,0.27491,3634.7,3634.6,0.27492]
[1732893131760,0.27493,3634.6,3634.5,0.27493]
[1732893132459,0.27493,3634.6,3634.5,0.27492]
[1732893132653,0.9312,3634.7,3634.4,0.8916]
[1732893132858,0.27493,3634.6,3634.5,0.27493]
[1732893133056,0.27493,3634.5,3634.4,0.8916]
[1732893133253,0.27493,3634.5,3634.4,1.16654]
[1732893133454,0.27493,3634.5,3634.4,0.8916]
[1732893133651,0.27493,3634.5,3634.4,1.16654]
[1732893133860,0.27493,3634.5,3634.4,0.8916]
[1732893134061,0.8662,3634.6,3634.0,0.9472]
[1732893134659,0.27494,3634.4,3634.3,0.27494]
[1732893134850,0.8662,3634.6,3634.0,0.9472]
[1732893135055,0.8662,3634.6,3634.4,0.27493]
[1732893135056,0.27493,3634.5,3634.4,0.27493]
[1732893135458,5.42262157,3634.8,3634.7,0.27491]
[1732893135459,3.2078,3634.8,3634.7,0.27491]
[1732893135855,2.21482157,3635.2,3635.0,0.27488]
[1732893136163,2.21482157,3635.2,3635.1,0.27488]
[1732893136164,0.27488,3635.2,3635.1,0.27488]
[1732893136662,0.27489,3635.1,3635.0,0.27489]
[1732893137061,4.9979,3635.5,3634.7,3.2078]
[1732893137361,0.27489,3635.1,3635.0,0.27489]
[1732893137557,4.9979,3635.5,3634.7,3.2078]
[1732893137749,0.27488,3635.2,3635.1,0.27488]
[1732893138158,0.27488,3635.2,3634.8,0.27491]
[1732893138365,0.27488,3635.2,3635.1,0.27488]
[1732893138664,0.27488,3635.3,3634.7,3.2078]
[1732893138851,0.27488,3635.3,3635.2,0.27488]
[1732893139159,4.9979,3635.5,3634.7,3.89508]
[1732893139353,0.27489,3635.1,3635.0,0.27489]
[1732893139756,2.21482157,3635.2,3634.7,3.2078]
[1732893139955,2.48970157,3635.2,3635.1,0.27488]
[1732893140262,2.21482157,3635.2,3634.7,3.2078]
[1732893140565,2.48970157,3635.2,3635.1,0.27488]
[1732893141262,2.21482157,3635.2,3635.1,0.27488]
[1732893142262,2.48970157,3635.2,3635.1,0.27488]
[1732893142561,2.21482157,3635.2,3634.7,3.2078]
[1732893142758,0.27489,3635.1,3634.8,0.27491]
[1732893142958,0.27489,3635.1,3634.7,3.2078]
[1732893142959,2.48970157,3635.2,3635.1,0.27488]
[1732893143158,2.21482157,3635.2,3635.1,0.27488]
[1732893144561,2.21482157,3635.2,3635.0,0.27488]
[1732893144863,2.21482157,3635.2,3635.1,0.27488]
[1732893145162,2.21482157,3635.2,3634.7,3.2078]
[1732893145562,2.21482157,3635.2,3635.1,0.27488]
[1732893145953,2.21482157,3635.2,3635.0,0.27489]
[1732893146157,2.21482157,3635.2,3634.7,3.2078]
[1732893146363,2.21482157,3635.2,3634.8,0.27491]
[1732893146566,2.21482157,3635.2,3635.1,0.27488]
[1732893150065,4.9979,3635.5,3635.4,0.27486]
[1732893150369,0.27503506,3636.2,3635.8,0.27483]
[1732893150370,4.3058,3635.9,3635.8,0.27483]
[1732893151070,3.2078,3635.9,3635.8,0.27483]
[1732893151271,3.48262,3635.9,3635.8,0.27483]
[1732893151472,3.2078,3635.9,3635.8,0.27483]
[1732893151663,3.48262,3635.9,3635.8,0.27483]
[1732893151865,4.06422157,3636.0,3635.5,0.68714]
[1732893152166,4.06422157,3636.0,3635.9,0.27482]
[1732893152367,3.2078,3636.3,3636.2,0.2748]
[1732893152368,5.42262157,3636.3,3636.2,0.2748]
[1732893152762,5.42262157,3636.3,3635.7,0.6871]
[1732893152967,5.42262157,3636.3,3636.2,0.2748]
[1732893154678,2.21482157,3636.3,3636.2,0.2748]
[1732893154871,2.21482157,3636.3,3636.2,0.8348]
[1732893156079,5.42262157,3636.3,3636.2,0.8348]
[1732893156578,5.42262157,3636.3,3636.1,0.2748]
[1732893156877,5.42262157,3636.3,3636.2,0.2748]
[1732893157175,2.21482157,3636.3,3636.2,0.2748]
[1732893157573,2.21482157,3636.3,3636.2,3.4826]
[1732893160775,0.8596,3636.6,3636.5,0.27478]
[1732893165381,0.27492618,3637.1,3636.4,0.68695]
[1732893165591,0.27492618,3637.1,3637.0,0.27474]
[1732893165783,0.27492618,3637.1,3636.9,0.27474]
[1732893166087,0.27492618,3637.1,3636.8,0.27474]
[1732893166281,3.2078,3636.9,3636.8,0.27474]
[1732893166480,3.2078,3636.9,3636.7,0.27476]
[1732893166681,3.2078,3636.9,3636.8,0.27475]
[1732893166881,3.2078,3636.9,3636.4,0.9273]
[1732893167078,3.48252,3636.9,3636.8,0.27473]
[1732893167277,3.2078,3636.9,3636.4,0.9273]
[1732893167496,3.2078,3636.9,3636.3,0.926]
[1732893167688,2.21482157,3636.7,3636.4,0.96166]
[1732893167998,2.21482157,3636.7,3636.6,0.27474]
[1732893168284,2.21482157,3636.7,3636.2,3.2078]
[1732893168490,2.21482157,3636.3,3636.2,3.48257]
[1732893169288,0.27492618,3637.1,3636.2,3.2078]
[1732893169289,2.21482157,3636.8,3636.2,3.2078]
[1732893169496,2.21482157,3636.8,3636.7,0.27474]
[1732893171189,2.21482157,3636.8,3636.6,0.27474]
[1732893171390,2.21482157,3636.8,3636.2,3.2078]
[1732893171589,2.21482157,3636.3,3636.2,3.48257]
[1732893173987,4.57972618,3637.1,3636.2,3.48257]
[1732893173988,2.21482157,3636.7,3636.6,0.27474]
[1732893177001,3.48272618,3637.1,3637.0,0.27471]
[1732893177198,0.27492618,3637.1,3637.0,0.27471]
[1732893177895,2.21482157,3637.3,3636.8,3.2078]
[1732893178101,0.9266,3637.7,3636.9,0.9251]
[1732893178295,0.9266,3637.7,3637.6,0.27466]
[1732893178491,0.9266,3637.7,3637.6,41.07466]
[1732893179093,0.9266,3637.7,3637.6,0.27466]
[1732893180191,0.9266,3637.7,3637.2,40.8]